Cogmind - Beta 16 @@@ ROGUE MODE // 2025.11.14 @ 16:52:48 Player: Skysub Result: Destroyed by G-47 Trooper with Particle Gun Performance ------------- Evolutions (0) 0 Regions Visited (2) 400 Robots Destroyed (24) 120 Value Destroyed (592) 592 Prototype IDs (2) 40 Alien Tech Used (0) 0 Bonus (0) 0 TOTAL SCORE: 1152 Bonus ------- None Cogmind --------- Core Integrity 0/250 Matter 290/300 Energy 95/125 System Corruption 0% Temperature Cool (9) Movement Rolling (140) Ox4 Location -10/Mines Parts ------- > --- POWER (1) -------- Light Ion Engine > --- PROPULSION (2) --- Wheel Wheel > --- UTILITY (2) ------ Huge Storage Unit Light Armor Plating > --- WEAPON (2) ------- Rocket Launcher > --- INVENTORY (25) --- Light Nuclear Core Light Treads Small Storage Unit High-capacity Matter Pod (200) ECM Suite Light Armor Plating Light Armor Plating Light Armor Plating Medium Laser Spread Laser Spread Laser Beam Cannon Light Assault Rifle Rocket Launcher Rocket Launcher Mining Laser Hammer Peak State ------------ > --- POWER ------------ Light Ion Engine > --- PROPULSION ------- Wheel Wheel > --- UTILITY ---------- Huge Storage Unit Light Armor Plating > --- WEAPON ----------- Light Assault Rifle Light Assault Rifle > --- INVENTORY -------- Light Nuclear Core Light Treads Small Storage Unit High-capacity Matter Pod ECM Suite Light Armor Plating Light Armor Plating Light Armor Plating Medium Laser Spread Laser Beam Cannon Rocket Launcher Rocket Launcher Rocket Launcher Mining Laser [Rating: 9] Favorites ----------- Power Ion Engine Engine Ion Engine Propulsion Light Treads Treads Light Treads Wheel Wheel Utility Small Storage Unit Device Seismic Detector Storage Small Storage Unit Protection Light Armor Plating Weapon Light Assault Rifle Energy Cannon Beam Cannon Ballistic Gun Light Assault Rifle Launcher Rocket Launcher Impact Weapon Hammer Build | -11 -10 -10 ------- Run | Yrd Mat Min Slots Evolved . | . . . Power . | . . . Propulsion . | . . . Utility . | . . . Weapon . | . . . Parts Attached 18 | 7 10 1 Power 2 | 1 1 . Engine 2 | 1 1 . Core . | . . . Reactor . | . . . Propulsion 5 | 2 3 . Treads 3 | 2 1 . Leg . | . . . Wheel 2 | . 2 . Hover . | . . . Flight . | . . . Utility 4 | 2 2 . Device 1 | 1 . . Storage 2 | 1 1 . Processor . | . . . Hackware . | . . . Protection 1 | . 1 . Artifact . | . . . Weapon 7 | 2 4 1 Energy Gun . | . . . Energy Cannon 1 | . 1 . Ballistic Gun 3 | 2 1 . Ballistic Cannon . | . . . Launcher 2 | . 1 1 Special Weapon . | . . . Impact Weapon 1 | . 1 . Slashing Weapon . | . . . Piercing Weapon . | . . . Special Melee Weapon . | . . . Unidentified Prototypes . | . . . Parts Lost 6 | . 6 . Power 1 | . 1 . Propulsion 2 | . 2 . Utility 1 | . 1 . Weapon 2 | . 2 . Highest Loss Streak 2 | . 2 . To Critical Strikes . | . . . Average Backups 10 | 3 11 17 Power 1 | . 1 1 Propulsion 1 | 1 1 1 Utility 2 | . 3 6 Weapon 4 | . 4 9 Tool/Special . | . . . Unused Backups 11 | . . 11 Power 1 | . . 1 Propulsion . | . . . Utility 5 | . . 5 Weapon 5 | . . 5 Tool/Special . | . . . Average Slot Usage (%) 92 | . 92 85 Engine 14 | . 14 14 Treads 12 | . 13 . Wheel 14 | . 13 28 Device 4 | . 4 . Storage 14 | . 14 14 Protection 6 | . 6 14 Energy Cannon 1 | . 1 14 Ballistic Gun 21 | . 21 . Impact Weapon 1 | . 2 . Peak Build Rating 9 | 7 9 8 Average Rating 7 | 5 7 8 On Entrance 5 | . 7 8 Avg Prop Armor Cover (%) 14 | . 14 . Naked Turns . | . . . Heaviest Build 89 | 14 89 89 Greatest Support 40 | 40 40 20 Greatest Overweight (x) 4 | 2 4 4 Average Overweight (x) 1 | . 2 4 Largest Inventory Capacity 25 | 8 25 25 Average Capacity 14 | 6 15 25 Most Carried 17 | 5 17 17 Average Carried 10 | 3 11 17 Final Capacity 25 | 8 25 25 Final Carried 17 | 5 17 17 Class Distribution -------------------- 100% | Mutant Dominant Class ---------------- Mutant | -10/Materials Mutant | -10/Mines Resources | -11 -10 -10 ----------- Run | Yrd Mat Min Matter Collected 785 | 302 483 . Remotely . | . . . Salvage Created 926 | 75 851 . Parts 46 | 6 40 . Haulers Intercepted 1 | . 1 . Recyclers Shooed . | . . . Parts Field Recycled . | . . . Retrieved Matter . | . . . Parts Self-Destructed . | . . . Prevented . | . . . Parts Restored . | . . . Kills | -11 -10 -10 ------- Run | Yrd Mat Min Combat Hostiles Destroyed 17 | . 17 . Melee 3 | . 3 . Guns 11 | . 11 . Cannons 2 | . 2 . Classes Destroyed 7 | 2 5 . Builder 2 | . 2 . Tunneler 1 | 1 . . Hauler 1 | . 1 . Recycler 2 | 1 1 . Watcher 1 | . 1 . Swarmer 3 | . 3 . Grunt 14 | . 14 . Best Kill Streak 3 | 2 3 . Combat Bots Only 3 | . 3 . Max Kills in Single Turn 1 | 1 1 . Gunslinging . | . . . Exploded . | . . . Melee 1 | . 1 . Uniques/NPCs Destroyed . | . . . Combat | -11 -10 -10 -------- Run | Yrd Mat Min Hostile Shots Fired 129 | . 126 3 Missed 36 | . 36 . Hits 93 | . 90 3 Projectile 93 | . 90 3 Critical Strikes 1 | . 1 . Damage Taken 1144 | . 1103 41 Core 256 | . 225 31 Absorbed by Shields . | . . . Core Remaining (%) 100 | 100 . . Volleys Fired 85 | 8 77 . Largest 2 | 2 2 . Hottest 60 | 40 60 . Shots Fired 161 | 16 145 . Gun 153 | 16 137 . Cannon 8 | . 8 . Launcher . | . . . Special . | . . . Kinetic 153 | 16 137 . Thermal 8 | . 8 . Explosive . | . . . Electromagnetic . | . . . Robot Hit Streak 24 | 3 24 . Robot Miss Streak 5 | 3 5 . Penetration Max . | . . . Secondary Targets 2 | . 2 . Max Gunslinging Chain 1 | . 1 . Shots Hit Robots 125 | 7 118 . Core Hits 45 | 3 42 . Critical Kills 2 | . 2 . Critical Parts Destroyed 2 | . 2 . Critical Strikes 4 | . 4 . Smash 4 | . 4 . Melee Attacks 18 | . 18 . Impact 18 | . 18 . Slashing . | . . . Piercing . | . . . Sneak Attacks 2 | . 2 . Combat Hostiles . | . . . Follow-up Attacks . | . . . Damage Inflicted 1567 | 85 1482 . Guns 1004 | 85 919 . Cannons 143 | . 143 . Explosions . | . . . Melee 409 | . 409 . Ramming 11 | . 11 . Kinetic 1004 | 85 919 . Thermal 143 | . 143 . Explosive . | . . . Electromagnetic . | . . . Impact 409 | . 409 . Slashing . | . . . Piercing . | . . . Highest Corruption . | . . . Average Corruption . | . . . Corruption Purged . | . . . Corruption Blocked . | . . . Overload Shots . | . . . Overflow Damage 121 | . 121 . Projectiles . | . . . Explosions . | . . . Melee 121 | . 121 . Knockbacks 2 | . 2 . Impact 2 | . 2 . Kinetic . | . . . Secondary . | . . . Self-Inflicted Damage . | . . . Shots . | . . . Rammed 2 | . 2 . Targets Rammed 2 | . 2 . Kicked . | . . . Crushed . | . . . Highest Temperature 206 | . 206 . Average Temperature 33 | . 33 . Received Heat Transfer 531 | . 507 24 Siege Activations . | . . . Martial Activations . | . . . Shielding Activations . | . . . Robots Disrupted . | . . . Combat Hostiles . | . . . Robots Corrupted 1 | . 1 . Combat Hostiles 1 | . 1 . Parts Fried 3 | . 3 . Impact Corruptions 6 | . 6 . Robots Melted . | . . . Combat Hostiles . | . . . Parts Melted 1 | . 1 . Heat Transferred 296 | . 296 . Parts Sabotaged . | . . . Parts Stolen . | . . . Parts Stripped . | . . . Power Chain Reactions . | . . . Alert | -11 -10 -10 ------- Run | Yrd Mat Min Maximum Alert Level . | . . . Low Security (%) 100 | 100 100 100 Level 1 . | . . . Level 2 . | . . . Level 3 . | . . . Level 4 . | . . . Level 5 . | . . . High Security . | . . . Max Security . | . . . Peak Influence 116 | 5 116 40 Initial 40 | . . 40 Average 32 | . 36 40 Influence Increases 526 | 10 516 . Destroy 0b10 Robot/C 340 | . 340 . Destroy 0b10 Robot/NC 35 | 10 25 . Destroy Leader 74 | . 74 . Successful Hack 16 | . 16 . Select Force Hacks 60 | . 60 . Destroy Structure 1 | . 1 . Influence Decreases 486 | 10 412 64 Entered New Map 64 | . . 64 Time Decay 362 | 10 352 . Lost Part 60 | . 60 . Squads Dispatched 3 | . 3 . Investigation 3 | . 3 . Extermination . | . . . Reinforcement . | . . . Assault . | . . . Garrison . | . . . Intercept . | . . . Searches Triggered . | . . . Construction Impeded . | . . . Haulers Reinforced . | . . . Active Scanning Responses . | . . . Cargo Convoy Interrupts . | . . . Stealth | -11 -10 -10 --------- Run | Yrd Mat Min Distress Signals 4 | . 4 . Communications Jammed . | . . . Distress Signals . | . . . Times Spotted 28 | . 26 2 Peak Tracking Total 4 | . 4 2 Tactical Retreats . | . . . Traps | -11 -10 -10 ------- Run | Yrd Mat Min Traps Triggered 2 | . 2 . Indirectly . | . . . Trap Hack Attempts . | . . . Triggered . | . . . Disarmed . | . . . Reprogrammed . | . . . Reused . | . . . Traps Extracted . | . . . Installed . | . . . Triggered . | . . . Machines | -11 -10 -10 ---------- Run | Yrd Mat Min Machines Disabled . | . . . Max in Single Turn . | . . . Machines Repaired . | . . . Machines Dismantled . | . . . Machines Sabotaged . | . . . Overloaded Fab Kills . | . . . Hacking | -11 -10 -10 --------- Run | Yrd Mat Min Machines Accessed 9 | . 9 . Terminals 7 | . 7 . Fabricators . | . . . Repair Stations . | . . . Recycling Units 2 | . 2 . Scanalyzers . | . . . Garrison Access . | . . . Total Hacks 25 | . 25 . Successful 18 | . 18 . Failed 7 | . 7 . Catastrophic 1 | . 1 . Database Lockouts . | . . . Manual 16 | . 16 . Terminals 20 | . 20 . Fabricators . | . . . Repair Stations . | . . . Recycling Units 5 | . 5 . Scanalyzers . | . . . Garrison Access . | . . . Terminal Hacks 5 | . 5 . Robot Analysis 2 | . 2 . Prototype ID Bank 1 | . 1 . Terminal Index 1 | . 1 . Alert Level 1 | . 1 . Fabricator Hacks . | . . . Repair Station Hacks . | . . . Recycling Unit Hacks 3 | . 3 . Report Inventory 2 | . 2 . Retrieve Components 1 | . 1 . Scanalyzer . | . . . Garrison Access Hacks . | . . . Unauthorized Hacks 10 | . 10 . Terminals 8 | . 8 . Botnet 2 | . 2 . Skim 6 | . 6 . Fabricators . | . . . Repair Stations . | . . . Recycling Units 2 | . 2 . Tunnel 2 | . 2 . Scanalyzers . | . . . Garrison Access . | . . . Data Cores Recovered . | . . . Used . | . . . Hacking Detections 6 | . 6 . Full Trace Events 2 | . 2 . Feedback Events . | . . . Feedback Blocked . | . . . Robot Schematics Acquired . | . . . Robots Built . | . . . Authchips . | . . . Time . | . . . Total Robot Build Rating . | . . . Part Schematics Acquired . | . . . Parts Built . | . . . Authchips . | . . . Time . | . . . Total Part Build Rating . | . . . Part Studies Acquired . | . . . Parts Repaired . | . . . Time . | . . . Parts Recycled . | . . . Recycled Matter . | . . . Retrieved Matter . | . . . Retrieved Components 1 | . 1 . Parts Scanalyzed . | . . . Part Schematics Acquired . | . . . Parts Damaged . | . . . Bothacking | -11 -10 -10 ------------ Run | Yrd Mat Min Used RIF Installer . | . . . Robots Hacked . | . . . Non-combat . | . . . Combat . | . . . Robot Hacks Applied . | . . . Relay Couplers Released . | . . . Fabnet Peak Effective % . | . . . Robots Rewired . | . . . Allies Hacked . | . . . Hacks Repelled . | . . . Allies | -11 -10 -10 -------- Run | Yrd Mat Min Total Allies . | . . . Largest Group . | . . . Highest-Rated Group . | . . . Highest-Rated Ally . | . . . Total Orders . | . . . Ally Attacks . | . . . Total Damage . | . . . Kills . | . . . Allies Corrupted . | . . . Allies Melted . | . . . Intel | -11 -10 -10 ------- Run | Yrd Mat Min Active Infowar (turns) 326 | 23 303 . Seismic 326 | 23 303 . Robot Analysis Total 2 | . 2 . Derelict Logs Recovered . | . . . Drone Launches . | . . . Drone Recoveries . | . . . Exploration | -11 -10 -10 ------------- Run | Yrd Mat Min Turns Passed 1094 | 122 970 2 Spaces Moved 521 | 58 462 1 Core 9 | 9 . . Treads 213 | 49 164 . Legs . | . . . Wheels 299 | . 298 1 Hover . | . . . Flight . | . . . Fastest Speed 50 | 50 80 140 Average Speed 140 | 146 140 140 Slowest Speed 160 | 160 160 140 Overloaded Moves . | . . . Propulsion Burnouts . | . . . Robots Hopped . | . . . Potential Cave-ins . | . . . Cave-ins Triggered . | . . . Exploration Rate (%) 29 | 5 81 3 Regions Visited 2 Branch Regions 1 Pre-discovered Areas 2 | . 2 . Known Exits Taken 1 | . 1 . Unknown Exits Taken 1 | 1 . . Scrap Searched . | . . . Spaces Dug 1 | . 1 . Terrain Destroyed 1 | . 1 . Melee 1 | . 1 . Projectile . | . . . AOE . | . . . Terrain Rammed . | . . . Walls Destroyed . | . . . Machines Disabled . | . . . Actions | -11 -10 -10 --------- Run | Yrd Mat Min Total 703 | 77 624 2 Wait 40 | . 40 . Move 519 | 57 461 1 Hop . | . . . Pick Up 21 | 5 16 . Fast Attach 8 | 7 1 . Attach 4 | . 4 . Detach . | . . . Swap 6 | . 5 1 Drop . | . . . Fire 85 | 8 77 . Melee 18 | . 18 . Ram . | . . . Kick . | . . . Crush 2 | . 2 . Escape Stasis . | . . . Rewire . | . . . Trap . | . . . Miscellaneous . | . . . Route ------- -11/Scrapyard -10/Materials (discovered 6 exits: *Mat x3 / *Min x2 / *Sub) -10/Mines History --------- Turn | Location | Event 51 | -11/Scrapyard | Discovered new exit (range 15) 123 | -11/Scrapyard | Entered Materials 230 | -10/Materials | Discovered new exit (range 9) 314 | -10/Materials | Build established: Mutant 553 | -10/Materials | Discovered new exit (range 12) 573 | -10/Materials | Core integrity fell below 50% 755 | -10/Materials | Discovered new exit (range 4) 786 | -10/Materials | Identified exit to Materials 786 | -10/Materials | Identified exit to Mines 786 | -10/Materials | Identified exit to Subcaves 831 | -10/Materials | Learned 2 Storage zone layouts 868 | -10/Materials | Learned 4 Subcaves zone layouts 892 | -10/Materials | Core integrity fell below 20% 916 | -10/Materials | Learned location of 1 exit from Recycling 927 | -10/Materials | Loaded intel: 24 non-interactive machine locations 947 | -10/Materials | Learned Storage stockpile data 976 | -10/Materials | Learned Storage security intel 1013 | -10/Materials | Learned 2 Storage zone layouts 1093 | -10/Materials | Entered Mines 1095 | -10/Mines | Destroyed by G-47 Trooper with Particle Gun Last Messages --------------- 00976_ K-01 Serf collects debris. 00993_ Sneak attack on U-05 Engineer. 00993_ Destroyed Welding Torch. 00993_ Destroyed Wheel. 00993_ U-05 Engineer system corrupted by crushing effect. 00993_ Terrain Scanner fried. 00993_ Structural Scanner fried. 00993_ U-05 Engineer destroyed. 00996_ Acquired 28 matter. 01001_ U-05 Engineer builds a Wall. 01003_ Terrain Scan Processor melted. 01003_ U-05 Engineer destroyed. 01008_ Acquired 25 matter. 01013_ >> SKIM: Stored Storage zone layouts (x2). 01013_ >> SKIM: Data seek routine purged. 01047_ G-47 Trooper destroyed. 01057_ G-34 Mercenary destroyed. 01059_ Acquired 28 matter. LOCATION=MINES GOAL=ESCAPE Map ----- +----------------------------------------------------+ | ?????????????????????????????????????????????????? | | ?????????????????????????????????????????????????? | | ?????????????????????????????????????????????????? | | ?????????????????????????????????????????????????? | | ?????????????????????????????????????????????????? | | ?????????????????????????????????????????????????? | | ?????????????????????????????????????????????????? | | ?????????????????????????????????????????????????? | | ?????????????????????????????????????????????????? | | ?????????????????????????????????????????????????? | | ?????????????????????????????????????????????????? | | ?????????????????????????????????????????????????? | | ?????????????????????????????????????????????????? | | ?????????????????????????????????????????????????? | | ?????????????????????????????????????????????????? | | ?????????????????????????????????????????????????? | | ?????????????????????????????????????????????????? | | ?????????????????????????????????????????????????? | | ?????????????????????????????????????????????????? | | ?????????????????????????????????????????????????? | | ?????????????????????????????????????????????????? | | ?????????????????????????????????????????????????? | | ?????????????????????????????????????????????????? | | ?????????????????????????????????????????????????? | | ?????????????????????########????????????????????? | | ?????????????????????# @ #????????????????????? | | ?????????????????????# #????????????????????? | | ???????????????? #????????????????????? | | ??????????? gg #????????????????????? | | ?????????? ### #????????????????????? | | ??????????# ???########????????????????????? | | ???????????#### ?????????????????????????????????? | | ?????????????????????????????????????????????????? | | ?????????????????????????????????????????????????? | | ?????????????????????????????????????????????????? | | ?????????????????????????????????????????????????? | | ?????????????????????????????????????????????????? | | ?????????????????????????????????????????????????? | | ?????????????????????????????????????????????????? | | ?????????????????????????????????????????????????? | | ?????????????????????????????????????????????????? | | ?????????????????????????????????????????????????? | | ?????????????????????????????????????????????????? | | ?????????????????????????????????????????????????? | | ?????????????????????????????????????????????????? | | ?????????????????????????????????????????????????? | | ?????????????????????????????????????????????????? | | ?????????????????????????????????????????????????? | | ?????????????????????????????????????????????????? | | ?????????????????????????????????????????????????? | +----------------------------------------------------+ Best States ------------- Heat Dissipation 25 Energy Generation 10 Energy Capacity 250 Matter Stores 300 Matter Capacity 300 Sight Range 16 Terrain Scan Density 10 Armor Coverage 150 Evasion (%) 44 Recoil Reduction 2 Item Schematics ----------------- None Robot Schematics ------------------ None Fabricated ------------ Nothing Repaired ---------- Nothing Studied --------- None Alien Tech Used ----------------- None Achievements -------------- None Challenges ------------ None Game ------ Seed GuidanceGodGenerator Manual? 0 Play Time 00:06:54 Cumulative 274.2 hours Start 2025.11.14 @ 16:45:57 End 2025.11.14 @ 16:52:48 Sessions 1 Manual Loads 0 Difficulty Rogue Special Mode None Game No. 295 Rogue 295 Adventurer 0 Explorer 0 Win Type - Total 12 Types 5/0/3/1/1/0/0/1/0/1 Lore% 77 Gallery% 74 Achievement% 54 Wizard Run 0 Options --------- Layout 1 ASCII 0 Keyboard 1 Movement Numpad Keybinds 0 Fullscreen 2 Font 32/SmallcapsGlow Map View 77x35 Zoom Use 0% Tactical HUD 1 Map Filters NONE Filters NONE Steam 1 RUN: 95791c1f-5690-44ba-97f9-b0eae4b73107